[Event "*** Titled Tuesday Blitz"]
[Site "Chess.com"]
[Date "2020.04.07"]
[Round "5"]
[White "TheKingDoctor"]
[Black "GodDMuhammad"]
[Result "0-1"]
[WhiteElo "2099"]
[BlackElo "2320"]
[TimeControl "180+1"]
[EndTime "13:57:14 PDT"]
[Termination "GodDMuhammad won by checkmate"]

1. e4 {[%clk 0:03:00.3]} 1... c6 {[%clk 0:02:59]} 2. d4 {[%clk 0:02:58.6]} 2...
d5 {[%clk 0:02:58]} 3. Nc3 {[%clk 0:02:59]} 3... dxe4 {[%clk 0:02:57.9]} 4. Nxe4
{[%clk 0:02:59.9]} 4... Bf5 {[%clk 0:02:58.6]} 5. Ng3 {[%clk 0:02:59.8]} 5...
Bg6 {[%clk 0:02:59.1]} 6. Bc4 {[%clk 0:02:59.6]} 6... e6 {[%clk 0:02:53.7]} 7.
N1e2 {[%clk 0:02:58.1]} 7... Bd6 {[%clk 0:02:48.2]} 8. O-O {[%clk 0:02:56.2]}
8... Nf6 {[%clk 0:02:46.6]} 9. f4 {[%clk 0:02:47.7]} 9... Nbd7 {[%clk
0:02:28.1]} 10. f5 {[%clk 0:02:44.1]} 10... exf5 {[%clk 0:02:27.8]} 11. Nxf5
{[%clk 0:02:45]} 11... Bxf5 {[%clk 0:02:22.4]} 12. Rxf5 {[%clk 0:02:45.9]} 12...
Qc7 {[%clk 0:02:00]} 13. Bf4 {[%clk 0:01:44.3]} 13... Bxf4 {[%clk 0:01:15.8]}
14. Rxf4 {[%clk 0:01:42.8]} 14... Nb6 {[%clk 0:01:08.7]} 15. Bd3 {[%clk
0:01:36.1]} 15... O-O-O {[%clk 0:01:04.2]} 16. c4 {[%clk 0:01:29.3]} 16... Rhe8
{[%clk 0:00:53.5]} 17. Qf1 {[%clk 0:01:21.7]} 17... Kb8 {[%clk 0:00:49.1]} 18.
Qf2 {[%clk 0:01:04.2]} 18... Re7 {[%clk 0:00:49.2]} 19. Nc3 {[%clk 0:00:58.4]}
19... Rde8 {[%clk 0:00:47.5]} 20. Rd1 {[%clk 0:00:42.9]} 20... h5 {[%clk
0:00:41]} 21. h3 {[%clk 0:00:42.8]} 21... Nbd7 {[%clk 0:00:20]} 22. Bf1 {[%clk
0:00:40.6]} 22... Qa5 {[%clk 0:00:17.5]} 23. d5 {[%clk 0:00:37.7]} 23... cxd5
{[%clk 0:00:17.2]} 24. cxd5 {[%clk 0:00:37.5]} 24... Re5 {[%clk 0:00:14.1]} 25.
d6 {[%clk 0:00:35.8]} 25... Qc5 {[%clk 0:00:12.5]} 26. Bb5 {[%clk 0:00:28]}
26... Qxf2+ {[%clk 0:00:12.4]} 27. Kxf2 {[%clk 0:00:27.3]} 27... Kc8 {[%clk
0:00:11.5]} 28. Rc1 {[%clk 0:00:23.2]} 28... Kd8 {[%clk 0:00:11.3]} 29. Rc4
{[%clk 0:00:12.6]} 29... a6 {[%clk 0:00:10.2]} 30. Bxd7 {[%clk 0:00:11.7]} 30...
Kxd7 {[%clk 0:00:11.1]} 31. Rc7+ {[%clk 0:00:11.3]} 31... Kxd6 {[%clk
0:00:11.1]} 32. Rxb7 {[%clk 0:00:11]} 32... Ne4+ {[%clk 0:00:10.2]} 33. Nxe4+
{[%clk 0:00:10.4]} 33... Rxe4 {[%clk 0:00:11.1]} 34. Rxf7 {[%clk 0:00:10.3]}
34... Re2+ {[%clk 0:00:11.5]} 35. Kf1 {[%clk 0:00:10.3]} 35... Rxb2 {[%clk
0:00:10.5]} 36. Rxg7 {[%clk 0:00:07.7]} 36... Ree2 {[%clk 0:00:11]} 37. Rg6+
{[%clk 0:00:07.3]} 37... Kd5 {[%clk 0:00:09.1]} 38. Rg5+ {[%clk 0:00:07.5]}
38... Kd4 {[%clk 0:00:09.5]} 39. Rd1+ {[%clk 0:00:06.6]} 39... Ke4 {[%clk
0:00:09.9]} 40. Rg3 {[%clk 0:00:04.6]} 40... h4 {[%clk 0:00:07.9]} 41. Rg7
{[%clk 0:00:04.5]} 41... Kf4 {[%clk 0:00:08]} 42. Rf7+ {[%clk 0:00:04.2]} 42...
Kg3 {[%clk 0:00:08.4]} 43. Rg7+ {[%clk 0:00:03.9]} 43... Kh2 {[%clk 0:00:08.9]}
44. Rg4 {[%clk 0:00:04]} 44... Rxa2 {[%clk 0:00:09]} 45. Rxh4 {[%clk 0:00:03]}
45... Rf2+ {[%clk 0:00:09.5]} 46. Ke1 {[%clk 0:00:03]} 46... Rae2# {[%clk
0:00:10.4]} 0-1

[Event "*** Titled Tuesday Blitz"]
[Site "Chess.com"]
[Date "2020.04.07"]
[Round "5"]
[White "severomorskij"]
[Black "Bigfish1995"]
[Result "1-0"]
[WhiteElo "2853"]
[BlackElo "2963"]
[TimeControl "180+1"]
[EndTime "13:57:15 PDT"]
[Termination "severomorskij won on time"]

1. d4 {[%clk 0:03:00.9]} 1... Nf6 {[%clk 0:02:59.7]} 2. Bg5 {[%clk 0:03:00.9]}
2... d5 {[%clk 0:02:57.9]} 3. e3 {[%clk 0:02:59.5]} 3... Nbd7 {[%clk 0:02:56.3]}
4. Nf3 {[%clk 0:02:46.1]} 4... g6 {[%clk 0:02:53.7]} 5. c4 {[%clk 0:02:45.1]}
5... Bg7 {[%clk 0:02:52.6]} 6. Nc3 {[%clk 0:02:44.5]} 6... dxc4 {[%clk
0:02:30.5]} 7. Bxc4 {[%clk 0:02:43.3]} 7... O-O {[%clk 0:02:29.2]} 8. O-O {[%clk
0:02:42.7]} 8... c5 {[%clk 0:02:28.2]} 9. Rc1 {[%clk 0:02:32.9]} 9... cxd4
{[%clk 0:02:24.3]} 10. Nxd4 {[%clk 0:02:32.4]} 10... Nb6 {[%clk 0:02:15.1]} 11.
Bb3 {[%clk 0:02:25.9]} 11... Bd7 {[%clk 0:02:13.3]} 12. h3 {[%clk 0:02:18.9]}
12... Rc8 {[%clk 0:02:11.9]} 13. Qf3 {[%clk 0:02:13.4]} 13... h6 {[%clk
0:01:40.5]} 14. Bxf6 {[%clk 0:01:52.9]} 14... Bxf6 {[%clk 0:01:36.7]} 15. Rfd1
{[%clk 0:01:33]} 15... Rb8 {[%clk 0:01:00.5]} 16. Ne4 {[%clk 0:01:20.8]} 16...
Bg7 {[%clk 0:00:51.3]} 17. Nc5 {[%clk 0:01:15.4]} 17... Qe8 {[%clk 0:00:49.6]}
18. Nxd7 {[%clk 0:00:35.8]} 18... Nxd7 {[%clk 0:00:48.3]} 19. Qd5 {[%clk
0:00:19.8]} 19... Nb6 {[%clk 0:00:45.6]} 20. Qa5 {[%clk 0:00:18.9]} 20... Nc8
{[%clk 0:00:38.6]} 21. Qc7 {[%clk 0:00:15]} 21... Nd6 {[%clk 0:00:35.5]} 22. Qa5
{[%clk 0:00:10.6]} 22... a6 {[%clk 0:00:33.5]} 23. Rc7 {[%clk 0:00:09.3]} 23...
Qd8 {[%clk 0:00:32.7]} 24. Rdc1 {[%clk 0:00:06.9]} 24... Bxd4 {[%clk 0:00:29.4]}
25. exd4 {[%clk 0:00:07.2]} 25... Nb5 {[%clk 0:00:29.9]} 26. Qb6 {[%clk
0:00:07.1]} 26... Nxc7 {[%clk 0:00:28.8]} 27. Qxg6+ {[%clk 0:00:06.5]} 27... Kh8
{[%clk 0:00:20.1]} 28. Qxh6+ {[%clk 0:00:07.4]} 28... Kg8 {[%clk 0:00:20.4]} 29.
Qg6+ {[%clk 0:00:07.4]} 29... Kh8 {[%clk 0:00:20.3]} 30. Qh6+ {[%clk 0:00:07.6]}
30... Kg8 {[%clk 0:00:20.8]} 31. Rc3 {[%clk 0:00:06]} 31... Qd6 {[%clk
0:00:21.2]} 32. Rg3+ {[%clk 0:00:04.8]} 32... Qxg3 {[%clk 0:00:21.3]} 33. fxg3
{[%clk 0:00:05.7]} 33... Ne8 {[%clk 0:00:20]} 34. Qg5+ {[%clk 0:00:04.5]} 34...
Ng7 {[%clk 0:00:20]} 35. Qxe7 {[%clk 0:00:04.6]} 35... b5 {[%clk 0:00:20.1]} 36.
h4 {[%clk 0:00:04.1]} 36... Rbe8 {[%clk 0:00:19.9]} 37. Qg5 {[%clk 0:00:04]}
37... Re2 {[%clk 0:00:17.7]} 38. h5 {[%clk 0:00:03.3]} 38... Kh7 {[%clk
0:00:15.5]} 39. Qg4 {[%clk 0:00:02.4]} 39... Re1+ {[%clk 0:00:10]} 40. Kh2
{[%clk 0:00:01.9]} 40... Re7 {[%clk 0:00:04.6]} 41. Bc2+ {[%clk 0:00:02.2]}
41... Kh8 {[%clk 0:00:04.4]} 42. Qg5 {[%clk 0:00:02.4]} 42... Re6 {[%clk
0:00:04.5]} 43. d5 {[%clk 0:00:02.9]} 43... Rd6 {[%clk 0:00:04.2]} 44. h6 {[%clk
0:00:03.7]} 44... Ne8 {[%clk 0:00:04.6]} 45. Qe5+ {[%clk 0:00:03.8]} 45... f6
{[%clk 0:00:02]} 46. Qe7 {[%clk 0:00:03.9]} 1-0

[Event "*** Titled Tuesday Blitz"]
[Site "Chess.com"]
[Date "2020.04.07"]
[Round "5"]
[White "diskeleven"]
[Black "levallem"]
[Result "1-0"]
[WhiteElo "2363"]
[BlackElo "2113"]
[TimeControl "180+1"]
[EndTime "13:57:17 PDT"]
[Termination "diskeleven won by resignation"]

1. d4 {[%clk 0:02:43.2]} 1... d5 {[%clk 0:02:58.1]} 2. c4 {[%clk 0:02:41.6]}
2... c6 {[%clk 0:02:56.5]} 3. Nf3 {[%clk 0:02:40.8]} 3... Nf6 {[%clk 0:02:56.5]}
4. e3 {[%clk 0:02:40.2]} 4... Bg4 {[%clk 0:02:52.3]} 5. h3 {[%clk 0:02:39.8]}
5... Bxf3 {[%clk 0:02:51.7]} 6. Qxf3 {[%clk 0:02:39.2]} 6... e6 {[%clk
0:02:51.5]} 7. Nc3 {[%clk 0:02:35.1]} 7... Nbd7 {[%clk 0:02:51.1]} 8. cxd5
{[%clk 0:02:30.3]} 8... cxd5 {[%clk 0:02:45.6]} 9. Bd3 {[%clk 0:02:29.8]} 9...
a6 {[%clk 0:02:42.4]} 10. O-O {[%clk 0:02:29.6]} 10... Bd6 {[%clk 0:02:41.8]}
11. Qe2 {[%clk 0:02:27.5]} 11... O-O {[%clk 0:02:40.9]} 12. Bd2 {[%clk
0:02:26.8]} 12... Rc8 {[%clk 0:02:38.5]} 13. f4 {[%clk 0:02:26.7]} 13... g6
{[%clk 0:02:21]} 14. Be1 {[%clk 0:02:22.5]} 14... Qb6 {[%clk 0:02:09.9]} 15. Bh4
{[%clk 0:02:21.1]} 15... Rc7 {[%clk 0:02:03]} 16. Rab1 {[%clk 0:02:18.9]} 16...
Rfc8 {[%clk 0:02:01.9]} 17. Kh1 {[%clk 0:02:04.2]} 17... Qa7 {[%clk 0:01:48]}
18. Nd1 {[%clk 0:01:55.1]} 18... Ne4 {[%clk 0:01:43.2]} 19. Bxe4 {[%clk
0:01:52]} 19... dxe4 {[%clk 0:01:42.6]} 20. Be1 {[%clk 0:01:51.3]} 20... f5
{[%clk 0:01:39.5]} 21. Nc3 {[%clk 0:01:50.4]} 21... Nf6 {[%clk 0:01:36.6]} 22.
g4 {[%clk 0:01:49.4]} 22... Nd5 {[%clk 0:01:35.1]} 23. gxf5 {[%clk 0:01:49.5]}
23... Nxc3 {[%clk 0:01:31.2]} 24. Bxc3 {[%clk 0:01:45.8]} 24... exf5 {[%clk
0:01:31.1]} 25. Rg1 {[%clk 0:01:45.8]} 25... b5 {[%clk 0:01:17.8]} 26. d5 {[%clk
0:01:45.8]} 26... Rxc3 {[%clk 0:00:59.9]} 27. bxc3 {[%clk 0:01:45.2]} 27... Rxc3
{[%clk 0:01:00.3]} 28. Rb3 {[%clk 0:01:39.2]} 28... Qc7 {[%clk 0:00:46.4]} 29.
Qd2 {[%clk 0:01:39.1]} 29... b4 {[%clk 0:00:35.7]} 30. Qd4 {[%clk 0:01:22.7]}
30... Rc4 {[%clk 0:00:14]} 31. Qf6 {[%clk 0:01:21.3]} 31... Be7 {[%clk
0:00:12.9]} 32. Qxf5 {[%clk 0:01:16.6]} 32... Rc2 {[%clk 0:00:11.2]} 33. Qxe4
{[%clk 0:01:11.2]} 33... Rxa2 {[%clk 0:00:10.5]} 34. Qe6+ {[%clk 0:01:09.2]}
34... Kg7 {[%clk 0:00:09.9]} 35. Qe5+ {[%clk 0:01:09.3]} 35... Qxe5 {[%clk
0:00:09.4]} 36. fxe5 {[%clk 0:01:09.6]} 36... a5 {[%clk 0:00:09.8]} 37. d6
{[%clk 0:01:10]} 37... Bd8 {[%clk 0:00:09]} 38. Rf1 {[%clk 0:01:06.2]} 38... Rd2
{[%clk 0:00:05.3]} 39. Rf4 {[%clk 0:01:02.9]} 39... g5 {[%clk 0:00:04.9]} 40.
Rd4 {[%clk 0:01:02.5]} 40... Re2 {[%clk 0:00:05]} 41. e6 {[%clk 0:01:00.9]}
41... Kf6 {[%clk 0:00:05.4]} 42. e7 {[%clk 0:00:59.7]} 42... Bxe7 {[%clk
0:00:05.5]} 43. dxe7 {[%clk 0:00:59.6]} 43... Kxe7 {[%clk 0:00:06.4]} 44. Rd5
{[%clk 0:00:58.9]} 44... Re1+ {[%clk 0:00:04.9]} 45. Kg2 {[%clk 0:00:58.5]}
45... Ra1 {[%clk 0:00:05.8]} 46. Kf3 {[%clk 0:00:56.8]} 46... Kf6 {[%clk
0:00:05.7]} 47. Ke4 {[%clk 0:00:52.4]} 47... h5 {[%clk 0:00:06.3]} 48. Rb2
{[%clk 0:00:49.8]} 48... Ra3 {[%clk 0:00:04.9]} 49. Rf2+ {[%clk 0:00:48.8]}
49... Ke6 {[%clk 0:00:04.1]} 50. Rxg5 {[%clk 0:00:44.2]} 50... b3 {[%clk
0:00:04.3]} 51. Rxh5 {[%clk 0:00:42]} 51... Ra4+ {[%clk 0:00:03.9]} 52. Kd3
{[%clk 0:00:41]} 52... Rb4 {[%clk 0:00:03.8]} 53. Kc3 {[%clk 0:00:39.7]} 53...
Rb6 {[%clk 0:00:01.9]} 54. Rh6+ {[%clk 0:00:38]} 54... Ke5 {[%clk 0:00:02.2]}
55. Rxb6 {[%clk 0:00:37.8]} 55... b2 {[%clk 0:00:03.1]} 56. Rbxb2 {[%clk
0:00:37.1]} 56... a4 {[%clk 0:00:04]} 57. Ra2 {[%clk 0:00:37.7]} 57... Ke4
{[%clk 0:00:04.9]} 58. Ra3 {[%clk 0:00:38.5]} 58... Kxe3 {[%clk 0:00:04.8]} 59.
Rfa2 {[%clk 0:00:39.2]} 59... Ke4 {[%clk 0:00:05.5]} 60. Rxa4+ {[%clk
0:00:40.1]} 60... Ke3 {[%clk 0:00:06.2]} 1-0

[Event "*** Titled Tuesday Blitz"]
[Site "Chess.com"]
[Date "2020.04.07"]
[Round "5"]
[White "AlleyOoper"]
[Black "reigningmvp"]
[Result "1-0"]
[WhiteElo "2498"]
[BlackElo "2272"]
[TimeControl "180+1"]
[EndTime "13:57:17 PDT"]
[Termination "AlleyOoper won by resignation"]

1. d4 {[%clk 0:02:31.2]} 1... Nf6 {[%clk 0:02:57.6]} 2. Bf4 {[%clk 0:02:12.4]}
2... d5 {[%clk 0:02:56.8]} 3. e3 {[%clk 0:02:12.6]} 3... c5 {[%clk 0:02:56.8]}
4. Nf3 {[%clk 0:02:12.6]} 4... Nc6 {[%clk 0:02:57.3]} 5. Nbd2 {[%clk 0:02:13.2]}
5... cxd4 {[%clk 0:02:54.9]} 6. exd4 {[%clk 0:02:13.5]} 6... Bf5 {[%clk
0:02:55.5]} 7. c3 {[%clk 0:02:12.3]} 7... e6 {[%clk 0:02:55.8]} 8. Be2 {[%clk
0:02:12.9]} 8... Bd6 {[%clk 0:02:54.6]} 9. Bxd6 {[%clk 0:02:13]} 9... Qxd6
{[%clk 0:02:55.2]} 10. Nh4 {[%clk 0:02:13.6]} 10... Be4 {[%clk 0:02:53]} 11.
Nxe4 {[%clk 0:02:12.9]} 11... Nxe4 {[%clk 0:02:52.8]} 12. Nf3 {[%clk 0:02:12.8]}
12... O-O {[%clk 0:02:52.2]} 13. O-O {[%clk 0:02:13.2]} 13... Rac8 {[%clk
0:02:44.8]} 14. Bd3 {[%clk 0:02:13.3]} 14... f5 {[%clk 0:02:35.7]} 15. Qe2
{[%clk 0:02:04.5]} 15... Rf6 {[%clk 0:02:34]} 16. Ne5 {[%clk 0:02:01.5]} 16...
Nxe5 {[%clk 0:02:11.4]} 17. dxe5 {[%clk 0:02:00.8]} 17... Qxe5 {[%clk
0:02:11.9]} 18. f3 {[%clk 0:01:57.3]} 18... Rh6 {[%clk 0:02:11.8]} 19. g3 {[%clk
0:01:51.1]} 19... a6 {[%clk 0:01:40.5]} 20. fxe4 {[%clk 0:01:48.5]} 20... dxe4
{[%clk 0:01:38.8]} 21. Bc2 {[%clk 0:01:48.7]} 21... g5 {[%clk 0:01:35.8]} 22.
Rae1 {[%clk 0:01:40.8]} 22... Qa5 {[%clk 0:01:20.9]} 23. Bb3 {[%clk 0:01:39.5]}
23... Qb6+ {[%clk 0:01:21]} 24. Qf2 {[%clk 0:01:39.3]} 24... Rc5 {[%clk
0:01:15.9]} 25. Qd4 {[%clk 0:01:30.7]} 25... Qc7 {[%clk 0:01:12.8]} 26. Rd1
{[%clk 0:01:20.4]} 26... b5 {[%clk 0:00:58.2]} 27. Qd8+ {[%clk 0:00:56.9]} 27...
Qxd8 {[%clk 0:00:56.9]} 28. Rxd8+ {[%clk 0:00:57.8]} 28... Kf7 {[%clk
0:00:57.8]} 29. Rfd1 {[%clk 0:00:58.4]} 29... f4 {[%clk 0:00:53.3]} 30. R1d6
{[%clk 0:00:37.9]} 30... f3 {[%clk 0:00:48.8]} 31. R8d7+ {[%clk 0:00:31.5]}
31... Kf8 {[%clk 0:00:44.5]} 32. Rxa6 {[%clk 0:00:27.5]} 32... Rc8 {[%clk
0:00:37.3]} 33. Raa7 {[%clk 0:00:24.6]} 33... Kg8 {[%clk 0:00:28.9]} 34. Rg7+
{[%clk 0:00:14.8]} 34... Kh8 {[%clk 0:00:28.4]} 35. Rge7 {[%clk 0:00:14.9]}
35... e3 {[%clk 0:00:25.1]} 36. h4 {[%clk 0:00:14.1]} 36... gxh4 {[%clk
0:00:19.5]} 37. g4 {[%clk 0:00:14.4]} 37... e2 {[%clk 0:00:17.3]} 38. Kf2 {[%clk
0:00:14.2]} 38... h3 {[%clk 0:00:17.9]} 39. Bc2 {[%clk 0:00:13.5]} 39... h2
{[%clk 0:00:15.5]} 40. Rxh7+ {[%clk 0:00:13.8]} 40... Rxh7 {[%clk 0:00:15.3]}
41. Rxh7+ {[%clk 0:00:14.7]} 41... Kg8 {[%clk 0:00:16.2]} 42. Rxh2 {[%clk
0:00:15.5]} 42... Rf8 {[%clk 0:00:15.5]} 43. Rh1 {[%clk 0:00:15.6]} 43... e5
{[%clk 0:00:15.6]} 44. Be4 {[%clk 0:00:15.7]} 44... Rf4 {[%clk 0:00:15.6]} 45.
Bxf3 {[%clk 0:00:14.4]} 45... e4 {[%clk 0:00:15.9]} 46. Kxe2 {[%clk 0:00:13.9]}
46... exf3+ {[%clk 0:00:16.3]} 47. Kf2 {[%clk 0:00:14.5]} 47... Rxg4 {[%clk
0:00:15.6]} 48. Rg1 {[%clk 0:00:14.9]} 48... Rxg1 {[%clk 0:00:15]} 49. Kxg1
{[%clk 0:00:15.8]} 49... Kf7 {[%clk 0:00:15.9]} 50. Kf2 {[%clk 0:00:16.7]} 50...
Ke6 {[%clk 0:00:16.8]} 51. Kxf3 {[%clk 0:00:17.6]} 51... Kd5 {[%clk 0:00:17.7]}
52. Ke3 {[%clk 0:00:18.5]} 52... Kc4 {[%clk 0:00:18.6]} 53. Kd2 {[%clk
0:00:19.2]} 53... Kc5 {[%clk 0:00:18.4]} 54. Kd3 {[%clk 0:00:19.4]} 54... Kd5
{[%clk 0:00:19.3]} 55. b3 {[%clk 0:00:19.4]} 55... Kc5 {[%clk 0:00:20.2]} 56.
b4+ {[%clk 0:00:18.4]} 56... Kc6 {[%clk 0:00:21.1]} 57. c4 {[%clk 0:00:18.3]}
57... Kb6 {[%clk 0:00:20.2]} 58. c5+ {[%clk 0:00:18.1]} 58... Kc6 {[%clk
0:00:20.6]} 59. Kd4 {[%clk 0:00:18.6]} 59... Kc7 {[%clk 0:00:20.7]} 60. Kd5
{[%clk 0:00:19.1]} 60... Kd7 {[%clk 0:00:21.2]} 61. c6+ {[%clk 0:00:19.5]} 61...
Kc7 {[%clk 0:00:22.1]} 62. Kc5 {[%clk 0:00:20.1]} 62... Kc8 {[%clk 0:00:22.5]}
63. Kxb5 {[%clk 0:00:20.4]} 63... Kc7 {[%clk 0:00:23.4]} 64. Kc5 {[%clk
0:00:20.6]} 64... Kc8 {[%clk 0:00:23.9]} 65. Kb6 {[%clk 0:00:21.2]} 65... Kb8
{[%clk 0:00:24.3]} 66. c7+ {[%clk 0:00:21.4]} 66... Kc8 {[%clk 0:00:24.4]} 67.
b5 {[%clk 0:00:21.8]} 67... Kd7 {[%clk 0:00:24.1]} 68. Kb7 {[%clk 0:00:22.7]}
1-0

[Event "*** Titled Tuesday Blitz"]
[Site "Chess.com"]
[Date "2020.04.07"]
[Round "5"]
[White "Sajkochess"]
[Black "tteshan"]
[Result "0-1"]
[WhiteElo "2341"]
[BlackElo "2205"]
[TimeControl "180+1"]
[EndTime "13:57:18 PDT"]
[Termination "tteshan won by resignation"]

1. e4 {[%clk 0:03:00.3]} 1... c5 {[%clk 0:02:58.5]} 2. Nf3 {[%clk 0:03:00.3]}
2... d6 {[%clk 0:02:58.3]} 3. d4 {[%clk 0:03:00.8]} 3... cxd4 {[%clk 0:02:58.7]}
4. Nxd4 {[%clk 0:03:01.2]} 4... Nf6 {[%clk 0:02:59.3]} 5. Nc3 {[%clk 0:03:01.7]}
5... a6 {[%clk 0:02:59.7]} 6. g3 {[%clk 0:03:02.1]} 6... g6 {[%clk 0:02:57.1]}
7. Bg2 {[%clk 0:03:01.2]} 7... Bg7 {[%clk 0:02:57.5]} 8. O-O {[%clk 0:03:01.6]}
8... O-O {[%clk 0:02:58.1]} 9. h3 {[%clk 0:03:00.1]} 9... Nc6 {[%clk 0:02:58.4]}
10. Nde2 {[%clk 0:02:59.2]} 10... Bd7 {[%clk 0:02:55.4]} 11. Be3 {[%clk
0:02:56.4]} 11... Rc8 {[%clk 0:02:55.4]} 12. Rc1 {[%clk 0:02:21.2]} 12... b5
{[%clk 0:02:53.1]} 13. Nd5 {[%clk 0:02:19.7]} 13... Nxd5 {[%clk 0:02:49.5]} 14.
exd5 {[%clk 0:02:18.3]} 14... Ne5 {[%clk 0:02:48.3]} 15. b3 {[%clk 0:02:18]}
15... f5 {[%clk 0:02:35.7]} 16. f4 {[%clk 0:02:08.7]} 16... Nf7 {[%clk 0:02:35]}
17. Bd4 {[%clk 0:01:46.7]} 17... e5 {[%clk 0:02:28.7]} 18. dxe6 {[%clk 0:01:43]}
18... Bxe6 {[%clk 0:02:29]} 19. Bxg7 {[%clk 0:01:42.5]} 19... Kxg7 {[%clk
0:02:29.9]} 20. Nd4 {[%clk 0:01:42.7]} 20... Re8 {[%clk 0:02:16.5]} 21. Nxe6+
{[%clk 0:01:36.1]} 21... Rxe6 {[%clk 0:02:17.4]} 22. Qd4+ {[%clk 0:01:34.4]}
22... Qf6 {[%clk 0:02:12.5]} 23. Qxf6+ {[%clk 0:01:19.7]} 23... Kxf6 {[%clk
0:02:13.4]} 24. Rf2 {[%clk 0:01:16.7]} 24... Rc3 {[%clk 0:02:10.9]} 25. Kh2
{[%clk 0:01:11.6]} 25... Ree3 {[%clk 0:02:10]} 26. g4 {[%clk 0:01:07]} 26... Nd8
{[%clk 0:01:47.9]} 27. Rd1 {[%clk 0:01:00.9]} 27... Ke7 {[%clk 0:01:47.7]} 28.
Rfd2 {[%clk 0:00:40.4]} 28... Ne6 {[%clk 0:01:21.9]} 29. Rxd6 {[%clk 0:00:28.6]}
29... Rxc2 {[%clk 0:01:21.7]} 30. Rd7+ {[%clk 0:00:25.5]} 30... Ke8 {[%clk
0:01:19.9]} 31. R1d2 {[%clk 0:00:15.9]} 31... Rxd2 {[%clk 0:01:17.3]} 32. Rxd2
{[%clk 0:00:16.2]} 32... Nxf4 {[%clk 0:01:13.2]} 33. gxf5 {[%clk 0:00:16.2]}
33... gxf5 {[%clk 0:01:09.4]} 34. Rf2 {[%clk 0:00:09]} 34... Nxg2 {[%clk
0:00:56.8]} 35. Kxg2 {[%clk 0:00:09.9]} 35... Re5 {[%clk 0:00:56.8]} 36. Kf3
{[%clk 0:00:09.7]} 36... Ke7 {[%clk 0:00:56.4]} 37. Kf4 {[%clk 0:00:09.9]} 37...
Kf6 {[%clk 0:00:55.2]} 38. Rc2 {[%clk 0:00:10]} 38... Re4+ {[%clk 0:00:54.6]}
39. Kf3 {[%clk 0:00:10.4]} 39... Re6 {[%clk 0:00:45.7]} 40. Rc8 {[%clk 0:00:10]}
40... Rd6 {[%clk 0:00:39]} 41. Ke3 {[%clk 0:00:07.5]} 41... Ke5 {[%clk
0:00:37.4]} 42. Rh8 {[%clk 0:00:05.5]} 42... h6 {[%clk 0:00:36.1]} 43. Re8+
{[%clk 0:00:04.9]} 43... Re6 {[%clk 0:00:35.6]} 44. Ra8 {[%clk 0:00:05]} 44...
f4+ {[%clk 0:00:24.3]} 45. Kf3 {[%clk 0:00:05.2]} 45... Rf6 {[%clk 0:00:24.5]}
46. Re8+ {[%clk 0:00:04.4]} 46... Kf5 {[%clk 0:00:22.2]} 47. Rc8 {[%clk
0:00:03.7]} 47... Kg5 {[%clk 0:00:21.1]} 48. Rc5+ {[%clk 0:00:03.8]} 48... Kh4
{[%clk 0:00:20.6]} 49. Rc6 {[%clk 0:00:03.8]} 49... Rxc6 {[%clk 0:00:19.5]} 50.
Kxf4 {[%clk 0:00:03]} 0-1

[Event "*** Titled Tuesday Blitz"]
[Site "Chess.com"]
[Date "2020.04.07"]
[Round "5"]
[White "zivicd"]
[Black "Kaua18"]
[Result "0-1"]
[WhiteElo "2304"]
[BlackElo "2176"]
[TimeControl "180+1"]
[EndTime "13:57:18 PDT"]
[Termination "Kaua18 won on time"]

1. e4 {[%clk 0:03:00.9]} 1... c5 {[%clk 0:02:59.9]} 2. Nc3 {[%clk 0:03:00.2]}
2... Nc6 {[%clk 0:03:00.2]} 3. g3 {[%clk 0:03:00.1]} 3... g6 {[%clk 0:03:00.7]}
4. d3 {[%clk 0:03:00.1]} 4... Bg7 {[%clk 0:03:00.9]} 5. Be3 {[%clk 0:02:59.7]}
5... d6 {[%clk 0:03:01.3]} 6. Bg2 {[%clk 0:02:59.4]} 6... Bd7 {[%clk 0:02:57.8]}
7. Qd2 {[%clk 0:02:59]} 7... Rb8 {[%clk 0:02:57.9]} 8. Nge2 {[%clk 0:02:54.8]}
8... b5 {[%clk 0:02:57.7]} 9. a3 {[%clk 0:02:52.8]} 9... a5 {[%clk 0:02:52.7]}
10. O-O {[%clk 0:02:50.1]} 10... b4 {[%clk 0:02:52.5]} 11. axb4 {[%clk
0:02:49.6]} 11... axb4 {[%clk 0:02:53.4]} 12. Nd1 {[%clk 0:02:40.1]} 12... Nd4
{[%clk 0:02:53]} 13. h3 {[%clk 0:02:29.8]} 13... h5 {[%clk 0:02:49.1]} 14. f4
{[%clk 0:02:24.6]} 14... Qc8 {[%clk 0:02:46.3]} 15. Kh2 {[%clk 0:02:24.1]} 15...
Nh6 {[%clk 0:02:35.4]} 16. Ra7 {[%clk 0:02:13.1]} 16... h4 {[%clk 0:01:28]} 17.
g4 {[%clk 0:02:11.1]} 17... Bxg4 {[%clk 0:01:09.6]} 18. hxg4 {[%clk 0:01:31.3]}
18... Nxg4+ {[%clk 0:01:10.5]} 19. Kh1 {[%clk 0:01:20.9]} 19... h3 {[%clk
0:01:10]} 20. Bf3 {[%clk 0:01:16.1]} 20... Nxf3 {[%clk 0:01:02.6]} 21. Rxf3
{[%clk 0:01:15.4]} 21... Ra8 {[%clk 0:00:51.9]} 22. Rxa8 {[%clk 0:01:07]} 22...
Qxa8 {[%clk 0:00:52.8]} 23. f5 {[%clk 0:01:01.1]} 23... gxf5 {[%clk 0:00:50.1]}
24. Rxf5 {[%clk 0:00:59.3]} 24... e6 {[%clk 0:00:43.5]} 25. Rf1 {[%clk
0:00:50.6]} 25... f5 {[%clk 0:00:39.5]} 26. Ng3 {[%clk 0:00:44.3]} 26... Nxe3
{[%clk 0:00:25.3]} 27. Qxe3 {[%clk 0:00:40.5]} 27... Bd4 {[%clk 0:00:25]} 28.
Qf3 {[%clk 0:00:39.9]} 28... Be5 {[%clk 0:00:15.7]} 29. exf5 {[%clk 0:00:36.6]}
29... Qxf3+ {[%clk 0:00:15.6]} 30. Rxf3 {[%clk 0:00:37.2]} 30... Bxg3 {[%clk
0:00:13.4]} 31. Rxg3 {[%clk 0:00:38.1]} 31... exf5 {[%clk 0:00:13.7]} 32. Rf3
{[%clk 0:00:34.6]} 32... Rh5 {[%clk 0:00:12.1]} 33. Ne3 {[%clk 0:00:33.3]} 33...
Kd7 {[%clk 0:00:11.4]} 34. Nxf5 {[%clk 0:00:32.7]} 34... Rh8 {[%clk 0:00:10.7]}
35. Kh2 {[%clk 0:00:32.3]} 35... b3 {[%clk 0:00:11]} 36. c3 {[%clk 0:00:30.6]}
36... Ke6 {[%clk 0:00:09.7]} 37. Ng3 {[%clk 0:00:20.9]} 37... d5 {[%clk
0:00:07.7]} 38. Re3+ {[%clk 0:00:19.7]} 38... Kd6 {[%clk 0:00:07.3]} 39. Nf5+
{[%clk 0:00:18.4]} 39... Kc6 {[%clk 0:00:06.6]} 40. Re6+ {[%clk 0:00:15.3]}
40... Kc7 {[%clk 0:00:04.9]} 41. Re7+ {[%clk 0:00:12.6]} 41... Kc6 {[%clk
0:00:04.3]} 42. Re6+ {[%clk 0:00:09.5]} 42... Kc7 {[%clk 0:00:03.8]} 43. Re5
{[%clk 0:00:08]} 43... Kc6 {[%clk 0:00:03.7]} 44. d4 {[%clk 0:00:07.5]} 44...
cxd4 {[%clk 0:00:03.7]} 45. Nxd4+ {[%clk 0:00:06.5]} 45... Kd6 {[%clk
0:00:03.5]} 46. Re3 {[%clk 0:00:05.9]} 46... Ra8 {[%clk 0:00:02]} 47. Rf3 {[%clk
0:00:03.8]} 47... Ra2 {[%clk 0:00:02.4]} 48. Kxh3 {[%clk 0:00:04.7]} 48... Rxb2
{[%clk 0:00:02.3]} 49. Nf5+ {[%clk 0:00:01.9]} 49... Ke5 {[%clk 0:00:02.5]} 50.
Nd4 {[%clk 0:00:01.6]} 50... Ke4 {[%clk 0:00:02.7]} 0-1